fUST/lending_fUST_20250731
["ID","MTS","AMOUNT","RATE_DAILY","PERIOD"]
[376401719,1753967449807,-460.0,0.00019452,2]
[376401720,1753967449817,-460.0,0.00019452,2]
[376401721,1753967449826,-460.0,0.00019452,2]
[376401722,1753967449835,-461.85907179,0.00019452,2]
[376401723,1753967449844,-460.0,0.00019452,2]
[376401724,1753967449853,-460.0,0.00019452,2]
[376401725,1753967449862,-460.0,0.00019452,2]
[376401726,1753967449871,-460.0,0.00019452,2]
[376401727,1753967449880,-460.0,0.00019452,2]
[376401728,1753967449890,-460.0,0.00019452,2]
[376401729,1753967449899,-460.0,0.00019452,2]
[376401730,1753967449909,-460.0,0.00019452,2]
[376401731,1753967449921,-295.00042151,0.00019452,2]
[376401732,1753967449930,-460.0,0.00019452,2]
[376401733,1753967449939,-460.0,0.00019452,2]
[376401734,1753967449948,-460.0,0.00019452,2]
[376401735,1753967449957,-460.0,0.00019452,2]
[376401736,1753967449966,-460.0,0.00019452,2]
[376401737,1753967449975,-460.0,0.00019452,2]
[376401738,1753967449983,-460.0,0.00019452,2]
[376401739,1753967449992,-460.0,0.00019452,2]
[376401740,1753967450001,-461.8807633,0.00019452,2]
[376401741,1753967450011,-460.0,0.00019452,2]
[376401742,1753967450020,-460.0,0.00019452,2]
[376401743,1753967450030,-460.0,0.00019452,2]
[376401744,1753967450039,-460.0,0.00019452,2]
[376401745,1753967450048,-460.0,0.00019452,2]
[376401746,1753967450058,-460.0,0.00019452,2]
[376401747,1753967450068,-460.0,0.00019452,2]
[376401748,1753967450079,-460.0,0.00019452,2]
[376401749,1753967450088,-461.56380317,0.00019452,2]
[376401750,1753967450098,-460.0,0.00019452,2]
[376401751,1753967450107,-527.38,0.00019452,2]
[376401752,1753967450117,-460.0,0.00019452,2]
[376401753,1753967450127,-460.0,0.00019452,2]
[376401754,1753967450136,-462.7549465,0.00019452,2]
[376401755,1753967450145,-460.0,0.00019452,2]
[376401756,1753967450155,-460.0,0.00019452,2]
[376401757,1753967450165,-215.29092037,0.00019452,2]
[376401758,1753967450174,-460.0,0.00019452,2]
[376401759,1753967450184,-460.0,0.00019452,2]
[376401760,1753967450194,-460.0,0.00019452,2]
[376401761,1753967450203,-460.0,0.00019452,2]
[376401762,1753967450212,-460.0,0.00019452,2]
[376401763,1753967450222,-460.0,0.00019452,2]
[376401764,1753967450231,-460.0,0.00019452,2]
[376401765,1753967450240,-460.0,0.00019452,2]
[376401766,1753967450250,-460.0,0.00019452,2]
[376401767,1753967450259,-460.0,0.00019452,2]
[376401768,1753967450268,-460.0,0.00019452,2]
[376401769,1753967450277,-460.0,0.00019452,2]
[376401770,1753967450286,-460.0,0.00019452,2]
[376401771,1753967450295,-460.0,0.00019452,2]
[376401772,1753967450304,-460.0,0.00019452,2]
[376401773,1753967450316,-469.42350725,0.00019452,2]
[376401774,1753967450325,-460.0,0.00019452,2]
[376401775,1753967450335,-460.0,0.00019452,2]
[376401776,1753967450344,-460.0,0.00019452,2]
[376401777,1753967450354,-460.0,0.00019452,2]
[376401778,1753967450364,-460.0,0.00019452,2]
[376401779,1753967450373,-460.0,0.00019452,2]
[376401780,1753967450382,-460.0,0.00019452,2]
[376401781,1753967450392,-520.74,0.00019452,2]
[376401782,1753967450401,-460.0,0.00019452,2]
[376401783,1753967450410,-460.0,0.00019452,2]
[376401784,1753967450419,-460.0,0.00019452,2]
[376401785,1753967450428,-460.0,0.00019452,2]
[376401786,1753967450437,-460.0,0.00019452,2]
[376401787,1753967450447,-460.0,0.00019452,2]
[376401788,1753967450456,-460.0,0.00019452,2]
[376401789,1753967450465,-460.0,0.00019452,2]
[376401790,1753967450474,-471.97848189,0.00019452,2]
[376401791,1753967450483,-460.0,0.00019452,2]
[376401792,1753967450492,-460.0,0.00019452,2]
[376401793,1753967450501,-460.0,0.00019452,2]
[376401794,1753967450510,-460.0,0.00019452,2]
[376401795,1753967450520,-461.91438347,0.00019452,2]
[376401796,1753967450530,-460.0,0.00019452,2]
[376401797,1753967450539,-460.0,0.00019452,2]
[376401798,1753967450548,-460.0,0.00019452,2]
[376401799,1753967450557,-460.0,0.00019452,2]
[376401800,1753967450569,-460.0,0.00019452,2]
[376401801,1753967450579,-463.2388414,0.00019452,2]
[376401802,1753967450588,-460.0,0.00019452,2]
[376401803,1753967450597,-524.63738466,0.00019452,2]
[376401804,1753967450606,-460.0,0.00019452,2]
[376401805,1753967450615,-460.0,0.00019452,2]
[376401806,1753967450624,-460.0,0.00019452,2]
[376401807,1753967450633,-460.0,0.00019452,2]
[376401808,1753967450642,-460.0,0.00019452,2]
[376401809,1753967450651,-460.0,0.00019452,2]
[376401810,1753967450660,-384.58383672,0.00019452,2]
[376401811,1753967450669,-460.0,0.00019452,2]
[376401812,1753967450794,-460.0,0.00019452,2]
[376401813,1753967450804,-3050.38,0.00019452,2]
[376401814,1753967450814,-159.47883607,0.00019452,2]
[376401815,1753967450823,-461.85794706,0.00019452,2]
[376401816,1753967450833,-479.31,0.00019452,2]
[376401817,1753967450842,-632.8,0.00019452,2]
[376401818,1753967450852,-460.0,0.00019452,2]
[376401819,1753967450861,-460.0,0.00019452,2]
[376401820,1753967450871,-460.0,0.00019452,2]
[376401821,1753967450881,-460.0,0.00019452,2]
[376401822,1753967450890,-460.0,0.00019452,2]
[376401823,1753967450899,-460.0,0.00019452,2]
[376401824,1753967450909,-463.61944003,0.00019452,2]
[376401825,1753967450918,-460.0,0.00019452,2]
[376401826,1753967450927,-460.0,0.00019452,2]
[376401827,1753967450936,-460.0,0.00019452,2]
[376401828,1753967450945,-460.0,0.00019452,2]
[376401829,1753967450955,-460.0,0.00019452,2]
[376401830,1753967450964,-460.0,0.00019452,2]
[376401831,1753967450974,-460.0,0.00019452,2]
[376401832,1753967450983,-460.0,0.00019452,2]
[376401833,1753967450992,-460.0,0.00019452,2]
[376401834,1753967451002,-460.0,0.00019452,2]
[376401835,1753967451011,-461.07290261,0.00019452,2]
[376401836,1753967451021,-493.91,0.00019452,2]
[376401837,1753967451031,-464.2147819,0.00019452,2]
[376401838,1753967451040,-279.33232664,0.00019452,2]
[376401839,1753967451050,-460.0,0.00019452,2]
[376401840,1753967451059,-520.24,0.00019452,2]
[376401841,1753967451069,-1887.18,0.00019452,2]
[376401842,1753967451078,-460.0,0.00019452,2]
[376401843,1753967451087,-460.0,0.00019452,2]
[376401844,1753967451096,-460.0,0.00019452,2]
[376401845,1753967451106,-460.0,0.00019452,2]
[376401846,1753967451116,-938.86,0.00019452,2]
[376401847,1753967451125,-599.61,0.00019452,2]
[376401848,1753967451134,-466.72267648,0.00019452,2]
[376401849,1753967451144,-460.0,0.00019452,2]
[376401850,1753967451153,-460.0,0.00019452,2]
[376401851,1753967451163,-467.2,0.00019452,2]
[376401852,1753967451173,-460.0,0.00019452,2]
[376401853,1753967451183,-5618.19,0.00019452,2]
[376401854,1753967451192,-471.22877684,0.00019452,2]
[376401855,1753967451201,-569.4,0.00019452,2]
[376401856,1753967451211,-460.0,0.00019452,2]
[376401857,1753967451221,-460.0,0.00019452,2]
[376401858,1753967451231,-460.0,0.00019452,2]
[376401859,1753967451240,-460.0,0.00019452,2]
[376401860,1753967451250,-413.02535462,0.00019452,2]
[376401861,1753967451259,-460.0,0.00019452,2]
[376401862,1753967451268,-460.0,0.00019452,2]
[376401863,1753967451278,-460.0,0.00019452,2]
[376401864,1753967451287,-460.0,0.00019452,2]
[376401865,1753967451296,-460.0,0.00019452,2]
[376401866,1753967451305,-460.0,0.00019452,2]
[376401867,1753967451316,-460.0,0.00019452,2]
[376401868,1753967451326,-460.0,0.00019452,2]
[376401869,1753967451335,-460.0,0.00019452,2]
[376401870,1753967451344,-2192.51,0.00019452,2]
[376401871,1753967451354,-460.0,0.00019452,2]
[376401872,1753967451364,-468.24332423,0.00019452,2]
[376401873,1753967451374,-460.0,0.00019452,2]
[376401874,1753967451384,-460.0,0.00019452,2]
[376401875,1753967451393,-460.0,0.00019452,2]
[376401876,1753967451402,-1203.27,0.00019452,2]
[376401877,1753967451411,-616.48,0.00019452,2]
[376401878,1753967451420,-460.0,0.00019452,2]
[376401879,1753967451432,-460.0,0.00019452,2]
[376401880,1753967451442,-460.0,0.00019452,2]
[376401881,1753967451451,-460.0,0.00019452,2]
[376401882,1753967451460,-460.0,0.00019452,2]
[376401883,1753967451469,-460.0,0.00019452,2]
[376401884,1753967451479,-460.0,0.00019452,2]
[376401885,1753967451488,-2351.52,0.00019452,2]
[376401886,1753967451498,-460.0,0.00019452,2]
[376401887,1753967451507,-460.0,0.00019452,2]
[376401888,1753967451516,-592.5,0.00019452,2]
[376401889,1753967451525,-460.0,0.00019452,2]
[376401890,1753967451534,-460.0,0.00019452,2]
[376401891,1753967451543,-460.0,0.00019452,2]
[376401892,1753967451553,-460.0,0.00019452,2]
[376401893,1753967451562,-460.0,0.00019452,2]
[376401894,1753967451572,-460.0,0.00019452,2]
[376401895,1753967451581,-304.52372861,0.00019452,2]
[376401896,1753967451590,-460.0,0.00019452,2]
[376401897,1753967451600,-564.28,0.00019452,2]
[376401898,1753967451609,-494.78,0.00019452,2]
[376401899,1753967451619,-460.0,0.00019452,2]
[376401900,1753967451628,-460.0,0.00019452,2]
[376401901,1753967451636,-460.0,0.00019452,2]
[376401902,1753967451646,-316.23059141,0.00019452,2]
[376401903,1753967451655,-460.0,0.00019452,2]
[376401904,1753967451664,-460.0,0.00019452,2]
[376401905,1753967451673,-460.0,0.00019452,2]
[376401906,1753967451683,-465.42600994,0.00019452,2]
[376401907,1753967451691,-430.17202816,0.00019452,2]
[376401908,1753967451701,-460.0,0.00019452,2]
[376401909,1753967451711,-460.0,0.00019452,2]
[376401910,1753967451724,-460.0,0.00019452,2]
[376401911,1753967451733,-460.0,0.00019452,2]
[376401912,1753967451742,-2032.78,0.00019452,2]
[376401913,1753967451752,-1699.65,0.00019452,2]
[376401914,1753967451763,-460.0,0.00019452,2]
[376401915,1753967451771,-461.57702546,0.00019452,2]
[376401916,1753967451781,-472.46,0.00019452,2]
[376401917,1753967451790,-1521.9,0.00019452,2]
[376401918,1753967451799,-462.10530512,0.00019452,2]
[376401919,1753967451810,-674.46,0.00019452,2]
[376401920,1753967451819,-460.0,0.00019452,2]
[376401921,1753967451828,-460.0,0.00019452,2]
[376401922,1753967451838,-2038.21,0.00019452,2]
[376401923,1753967451847,-460.0,0.00019452,2]
[376401924,1753967451856,-460.0,0.00019452,2]
[376401925,1753967451865,-460.0,0.00019452,2]
[376401926,1753967451875,-797.08,0.00019452,2]
[376401927,1753967451884,-460.0,0.00019452,2]
[376401928,1753967451894,-1975.86,0.00019452,2]
[376401929,1753967451903,-460.0,0.00019452,2]
[376401930,1753967451912,-460.0,0.00019452,2]
[376401931,1753967451921,-460.0,0.00019452,2]
[376401932,1753967451931,-460.0,0.00019452,2]
[376401933,1753967451940,-460.0,0.00019452,2]
[376401934,1753967451950,-1469.9,0.00019452,2]
[376401935,1753967451959,-460.0,0.00019452,2]
[376401936,1753967451971,-460.0,0.00019452,2]
[376401937,1753967451980,-561.65,0.00019452,2]
[376401938,1753967451990,-460.0,0.00019452,2]
[376401939,1753967452000,-615.86,0.00019452,2]
[376401940,1753967452011,-460.0,0.00019452,2]
[376401941,1753967452021,-460.0,0.00019452,2]
[376401942,1753967452032,-460.0,0.00019452,2]
[376401943,1753967452041,-411.4857667,0.00019452,2]
[376401944,1753967452050,-514.87,0.00019452,2]
[376401945,1753967452059,-463.21253902,0.00019452,2]
[376401946,1753967452069,-460.0,0.00019452,2]
[376401947,1753967452078,-460.0,0.00019452,2]
[376401948,1753967452087,-460.0,0.00019452,2]
[376401949,1753967452096,-836.5,0.00019452,2]
[376401950,1753967452105,-461.52634427,0.00019452,2]
[376401951,1753967452114,-464.38133539,0.00019452,2]
[376401952,1753967452123,-460.0,0.00019452,2]
[376401953,1753967452132,-545.92,0.00019452,2]
[376401954,1753967452142,-460.0,0.00019452,2]
[376401955,1753967452151,-460.0,0.00019452,2]
[376401956,1753967452160,-460.0,0.00019452,2]
[376401957,1753967452170,-460.0,0.00019452,2]
[376401958,1753967452179,-460.0,0.00019452,2]
[376401959,1753967452188,-1143.84,0.00019452,2]
[376401960,1753967452197,-462.63072308,0.00019452,2]
[376401961,1753967452207,-461.69909756,0.00019452,2]
[376401962,1753967452216,-460.0,0.00019452,2]
[376401963,1753967452225,-460.0,0.00019452,2]
[376401964,1753967452234,-2527.39,0.00019452,2]
[376401965,1753967452245,-460.0,0.00019452,2]
[376401966,1753967452254,-460.0,0.00019452,2]
[376401967,1753967452263,-460.0,0.00019452,2]
[376401968,1753967452273,-460.0,0.00019452,2]
[376401969,1753967452282,-460.0,0.00019452,2]
[376401970,1753967452291,-460.0,0.00019452,2]
[376401971,1753967452301,-460.0,0.00019452,2]
[376401972,1753967452311,-460.0,0.00019452,2]
[376401973,1753967452320,-460.0,0.00019452,2]
[376401974,1753967452329,-460.0,0.00019452,2]
[376401975,1753967452338,-460.0,0.00019452,2]
[376401976,1753967452348,-460.0,0.00019452,2]
[376401977,1753967452358,-460.0,0.00019452,2]
[376401978,1753967452368,-463.44311601,0.00019452,2]
[376401979,1753967452381,-460.0,0.00019452,2]
[376401980,1753967452394,-672.14,0.00019452,2]
[376401981,1753967452403,-460.0,0.00019452,2]
[376401982,1753967452413,-3806.63,0.00019452,2]
[376401983,1753967452423,-460.0,0.00019452,2]
[376401984,1753967452434,-584.92,0.00019452,2]
[376401985,1753967452443,-460.0,0.00019452,2]
[376401986,1753967452453,-428.71029452,0.00019452,2]
[376401987,1753967452462,-529.38,0.00019452,2]
[376401988,1753967452472,-462.85848619,0.00019452,2]
[376401989,1753967452481,-460.0,0.00019452,2]
[376401990,1753967452491,-460.0,0.00019452,2]
[376401991,1753967452501,-461.0954283,0.00019452,2]
[376401992,1753967452510,-460.0,0.00019452,2]
[376401993,1753967452519,-460.0,0.00019452,2]
[376401994,1753967452529,-460.0,0.00019452,2]
[376401995,1753967452538,-460.0,0.00019452,2]
[376401996,1753967452548,-460.0,0.00019452,2]
[376401997,1753967452558,-4455.56,0.00019452,2]
[376401998,1753967452568,-460.0,0.00019452,2]
[376401999,1753967452578,-460.0,0.00019452,2]
[376402000,1753967452587,-460.0,0.00019452,2]
[376402001,1753967452596,-460.0,0.00019452,2]
[376402002,1753967452606,-633.88,0.00019452,2]
[376402003,1753967452615,-462.83,0.00019452,2]
[376402004,1753967452623,-460.0,0.00019452,2]
[376402005,1753967452633,-460.0,0.00019452,2]
[376402006,1753967452642,-462.63166474,0.00019452,2]
[376402007,1753967452652,-500.83702583,0.00019473,2]
[376402008,1753967452660,-500.52656431,0.00019473,2]
[376402009,1753967452670,-502.39832233,0.00019473,2]
[376402010,1753967452680,-500.65557338,0.00019473,2]
[376402011,1753967452689,-500.0,0.00019473,2]
[376402012,1753967452700,-500.0,0.00019473,2]
[376402013,1753967452714,-4166.21019061,0.00019587,2]
[376402014,1753967452724,-500.0,0.00019621,2]
[376402015,1753967452733,-1000.0,0.00019621,2]
[376402016,1753967452742,-1000.0,0.00019621,2]
[376402017,1753967452751,-427.32035153,0.00019621,2]
[376402018,1753967452759,-1000.0,0.00019621,2]
[376402019,1753967452769,-1000.0,0.00019621,2]
[376402020,1753967452778,-1000.0,0.00019621,2]
[376402021,1753967452787,-731.86362258,0.00019621,2]
[376402022,1753967452796,-374.27831165,0.00019621,2]
[376402023,1753967452805,-1000.0,0.00019621,2]
[376402024,1753967452814,-500.0,0.00019625,2]
[376402025,1753967452824,-73165.5563228,0.000197,2]
[376402026,1753967452832,-504.85790709,0.00019721,2]
[376402027,1753967452842,-549.5844987,0.00019721,2]
[376402028,1753967452851,-664.89369169,0.00019721,2]
[376402029,1753967452860,-172.08481441,0.00019721,2]
[376402030,1753967452869,-500.81836295,0.00019721,2]
[376402031,1753967452878,-1200.0,0.00019721,2]
[376402032,1753967452887,-1001.66944274,0.00019721,2]
[376402033,1753967452896,-1000.0,0.00019721,2]
[376402034,1753967452906,-1000.0,0.00019721,2]
[376402035,1753967452915,-1000.0,0.00019721,2]
[376402036,1753967452924,-501.41237042,0.00019721,2]
[376402037,1753967452933,-431.02658484,0.00019721,2]
[376402038,1753967452942,-797.48283727,0.00019721,2]
[376402039,1753967452951,-1000.0,0.00019721,2]
[376402040,1753967452960,-442.48622885,0.00019721,2]
[376402041,1753967452970,-1020.09512674,0.00019721,2]
[376402042,1753967452980,-1000.0,0.00019721,2]
[376402043,1753967452989,-1135.74493946,0.00019721,2]
[376402044,1753967453108,-1000.0,0.00019721,2]
[376402045,1753967453118,-1000.0,0.00019721,2]
[376402046,1753967453127,-501.20491629,0.00019721,2]
[376402047,1753967453136,-1000.0,0.00019721,2]
[376402048,1753967453145,-1000.0,0.00019721,2]
[376402049,1753967453154,-1007.99762055,0.00019721,2]
[376402050,1753967453164,-460.0,0.00019726,2]
[376402051,1753967453173,-460.0,0.00019726,2]
[376402052,1753967453182,-460.0,0.00019726,2]
[376402053,1753967453192,-460.0,0.00019726,2]
[376402054,1753967453203,-460.0,0.00019726,2]
[376402055,1753967453213,-460.0,0.00019726,2]
[376402056,1753967453234,-833.46,0.00019726,2]
[376402057,1753967453243,-460.0,0.00019726,2]
[376402058,1753967453253,-462.63058886,0.00019726,2]
[376402059,1753967453263,-460.0,0.00019726,2]
[376402060,1753967453272,-460.0,0.00019726,2]
[376402061,1753967453282,-463.97237841,0.00019726,2]
[376402062,1753967453291,-460.0,0.00019726,2]
[376402063,1753967453300,-463.31787919,0.00019726,2]
[376402064,1753967453310,-460.0,0.00019726,2]
[376402065,1753967453319,-550.67570272,0.00019726,2]
[376402066,1753967453329,-376.54009996,0.00019726,2]
[376402067,1753967453338,-460.0,0.00019726,2]
[376402068,1753967453348,-463.24252208,0.00019726,2]
[376402069,1753967453357,-460.0,0.00019726,2]
[376402070,1753967453366,-460.0,0.00019726,2]
[376402071,1753967453375,-460.0,0.00019726,2]
[376402072,1753967453384,-460.0,0.00019726,2]
[376402073,1753967453394,-463.99655373,0.00019726,2]
[376402074,1753967453404,-460.0,0.00019726,2]
[376402075,1753967453413,-460.0,0.00019726,2]
[376402076,1753967453423,-460.0,0.00019726,2]
[376402077,1753967453432,-460.0,0.00019726,2]
[376402078,1753967453442,-154.07665837,0.00019726,2]
[376402079,1753967453451,-460.0,0.00019726,2]
[376402080,1753967453460,-460.0,0.00019726,2]
[376402081,1753967453469,-500.0,0.00019726,2]
[376402082,1753967453479,-460.0,0.00019726,2]
[376402083,1753967453489,-464.29669518,0.00019726,2]
[376402084,1753967453498,-460.0,0.00019726,2]
[376402085,1753967453510,-463.12147389,0.00019726,2]
[376402086,1753967453520,-460.0,0.00019726,2]
[376402087,1753967453529,-460.0,0.00019726,2]
[376402088,1753967453539,-460.0,0.00019726,2]
[376402089,1753967453548,-461.72719874,0.00019726,2]
[376402090,1753967453558,-460.0,0.00019726,2]
[376402091,1753967453568,-557.06011307,0.00019726,2]
[376402092,1753967453577,-460.0,0.00019726,2]
[376402093,1753967453587,-460.0,0.00019726,2]
[376402094,1753967453597,-460.0,0.00019726,2]
[376402095,1753967453606,-364.82640241,0.00019726,2]
[376402096,1753967453615,-460.0,0.00019726,2]
[376402097,1753967453624,-460.0,0.00019726,2]
[376402098,1753967453633,-460.0,0.00019726,2]
[376402099,1753967453642,-460.0,0.00019726,2]
[376402100,1753967453651,-460.0,0.00019726,2]
[376402101,1753967453660,-460.0,0.00019726,2]
[376402102,1753967453669,-460.0,0.00019726,2]
[376402103,1753967453679,-460.0,0.00019726,2]
[376402104,1753967453688,-460.0,0.00019726,2]
[376402105,1753967453697,-460.0,0.00019726,2]
[376402106,1753967453706,-460.0,0.00019726,2]
[376402107,1753967453717,-460.0,0.00019726,2]
[376402108,1753967453726,-460.0,0.00019726,2]
[376402109,1753967453735,-460.0,0.00019726,2]
[376402110,1753967453744,-460.0,0.00019726,2]
[376402111,1753967453755,-460.0,0.00019726,2]
[376402112,1753967453764,-460.0,0.00019726,2]
[376402113,1753967453774,-461.64850267,0.00019726,2]
[376402114,1753967453785,-460.0,0.00019726,2]
[376402115,1753967453794,-460.0,0.00019726,2]
[376402116,1753967453803,-460.0,0.00019726,2]
[376402117,1753967453812,-460.0,0.00019726,2]
[376402118,1753967453821,-460.0,0.00019726,2]
[376402119,1753967453831,-460.0,0.00019726,2]
[376402120,1753967453840,-460.0,0.00019726,2]
[376402121,1753967453849,-460.0,0.00019726,2]
[376402122,1753967453858,-460.0,0.00019726,2]
[376402123,1753967453867,-460.0,0.00019726,2]
[376402124,1753967453876,-460.0,0.00019726,2]
[376402125,1753967453885,-460.0,0.00019726,2]
[376402126,1753967453895,-460.0,0.00019726,2]
[376402127,1753967453904,-460.0,0.00019726,2]
[376402128,1753967453912,-497.32,0.00019726,2]
[376402129,1753967453921,-460.0,0.00019726,2]
[376402130,1753967453930,-527.98,0.00019726,2]
[376402131,1753967453939,-460.0,0.00019726,2]
[376402132,1753967453949,-460.0,0.00019726,2]
[376402133,1753967453958,-460.0,0.00019726,2]
[376402134,1753967453967,-460.0,0.00019726,2]
[376402135,1753967453975,-460.0,0.00019726,2]
[376402136,1753967453985,-460.0,0.00019726,2]
[376402137,1753967453994,-541.74,0.00019726,2]
[376402138,1753967454003,-460.0,0.00019726,2]
[376402139,1753967454012,-460.0,0.00019726,2]
[376402140,1753967454021,-483.27,0.00019726,2]
[376402141,1753967454030,-460.0,0.00019726,2]
[376402142,1753967454039,-460.0,0.00019726,2]
[376402143,1753967454048,-460.0,0.00019726,2]
[376402144,1753967454056,-489.89693682,0.00019726,2]
[376402145,1753967454067,-420.65819096,0.00019726,2]
[376402146,1753967454077,-462.45335091,0.00019726,2]
[376402147,1753967454086,-460.0,0.00019726,2]
[376402148,1753967454096,-460.0,0.00019726,2]
[376402149,1753967454105,-463.69239888,0.00019726,2]
[376402150,1753967454115,-460.0,0.00019726,2]
[376402151,1753967454125,-460.0,0.00019726,2]
[376402152,1753967454135,-460.0,0.00019726,2]
[376402153,1753967454143,-478.04687281,0.00019726,2]
[376402154,1753967454153,-460.0,0.00019726,2]
[376402155,1753967454162,-460.0,0.00019726,2]
[376402156,1753967454181,-460.0,0.00019726,2]
[376402157,1753967454190,-460.0,0.00019726,2]
[376402158,1753967454199,-462.77032325,0.00019726,2]
[376402159,1753967454209,-460.0,0.00019726,2]
[376402160,1753967454218,-460.0,0.00019726,2]
[376402161,1753967454227,-460.0,0.00019726,2]
[376402162,1753967454236,-345.32837159,0.00019726,2]
[376402163,1753967454245,-460.0,0.00019726,2]
[376402164,1753967454254,-460.0,0.00019726,2]
[376402165,1753967454264,-460.0,0.00019726,2]
[376402166,1753967454273,-461.90913882,0.00019726,2]
[376402167,1753967454282,-460.0,0.00019726,2]
[376402168,1753967454291,-460.0,0.00019726,2]
[376402169,1753967454299,-460.0,0.00019726,2]
[376402170,1753967454309,-460.0,0.00019726,2]
[376402171,1753967454319,-460.0,0.00019726,2]
[376402172,1753967454328,-465.03238221,0.00019726,2]
[376402173,1753967454337,-460.0,0.00019726,2]
[376402174,1753967454346,-481.76046349,0.00019726,2]
[376402175,1753967454356,-207.77719308,0.00019726,2]
[376402176,1753967454365,-460.0,0.00019726,2]
[376402177,1753967454374,-460.0,0.00019726,2]
[376402178,1753967454384,-460.0,0.00019726,2]
[376402179,1753967454393,-460.0,0.00019726,2]
[376402180,1753967454402,-460.0,0.00019726,2]
[376402181,1753967454412,-461.73762684,0.00019726,2]
[376402182,1753967454421,-190.98447161,0.00019726,2]
[376402183,1753967454430,-460.0,0.00019726,2]
[376402184,1753967454440,-460.0,0.00019726,2]
[376402185,1753967454449,-498.33,0.00019726,2]
[376402186,1753967454459,-460.0,0.00019726,2]
[376402187,1753967454468,-460.0,0.00019726,2]
[376402188,1753967454477,-466.87,0.00019726,2]
[376402189,1753967454486,-460.0,0.00019726,2]
[376402190,1753967454495,-460.0,0.00019726,2]
[376402191,1753967454503,-460.0,0.00019726,2]
[376402192,1753967454513,-460.0,0.00019726,2]
[376402193,1753967454522,-460.0,0.00019726,2]
[376402194,1753967454531,-466.16052114,0.00019726,2]
[376402195,1753967454540,-460.0,0.00019726,2]
[376402196,1753967454550,-460.0,0.00019726,2]
[376402197,1753967454559,-460.0,0.00019726,2]
[376402198,1753967454570,-460.0,0.00019726,2]
[376402199,1753967454579,-460.0,0.00019726,2]
[376402200,1753967454588,-460.0,0.00019726,2]
[376402201,1753967454600,-460.0,0.00019726,2]
[376402202,1753967454609,-460.0,0.00019726,2]
[376402203,1753967454618,-460.0,0.00019726,2]
[376402204,1753967454628,-460.0,0.00019726,2]
[376402205,1753967454637,-460.0,0.00019726,2]
[376402206,1753967454646,-460.0,0.00019726,2]
[376402207,1753967454655,-460.0,0.00019726,2]
[376402208,1753967454664,-460.0,0.00019726,2]
[376402209,1753967454673,-460.0,0.00019726,2]
[376402210,1753967454682,-526.71,0.00019726,2]
[376402211,1753967454691,-460.0,0.00019726,2]
[376402212,1753967454700,-460.0,0.00019726,2]
[376402213,1753967454710,-382.90107045,0.00019726,2]
[376402214,1753967454723,-460.0,0.00019726,2]
[376402215,1753967454731,-460.0,0.00019726,2]
[376402216,1753967454741,-460.0,0.00019726,2]
[376402217,1753967454750,-460.0,0.00019726,2]
[376402218,1753967454760,-460.0,0.00019726,2]